fUST/lending_fUST_20251007
["ID","MTS","AMOUNT","RATE_DAILY","PERIOD"]
[389742064,1759821053427,-500.0,0.00019452,2]
[389742066,1759821053436,-500.0,0.00019452,2]
[389742068,1759821053446,-500.0,0.00019452,2]
[389742070,1759821053456,-500.0,0.00019452,2]
[389742073,1759821053467,-500.0,0.00019452,2]
[389742075,1759821053477,-422.08487859,0.00019452,2]
[389742077,1759821053487,-230.09408877,0.00019452,2]
[389742079,1759821053497,-500.0,0.00019452,2]
[389742081,1759821053506,-500.0,0.00019452,2]
[389742083,1759821053515,-500.0,0.00019452,2]
[389742085,1759821053525,-500.0,0.00019452,2]
[389742087,1759821053534,-388.4433082,0.00019452,2]
[389742089,1759821053545,-500.0,0.00019452,2]
[389742091,1759821053559,-500.0,0.00019452,2]
[389742093,1759821053568,-500.0,0.00019452,2]
[389742095,1759821053578,-500.0,0.00019452,2]
[389742097,1759821053587,-500.0,0.00019452,2]
[389742099,1759821053597,-500.0,0.00019452,2]
[389742101,1759821053606,-500.0,0.00019452,2]
[389742102,1759821053617,-605.7,0.00019452,2]
[389742104,1759821053630,-3169.89,0.00019452,2]
[389742106,1759821053640,-500.0,0.00019452,2]
[389742108,1759821053650,-500.0,0.00019452,2]
[389742111,1759821053661,-500.0,0.00019452,2]
[389742113,1759821053671,-500.0,0.00019452,2]
[389742115,1759821053681,-500.0,0.00019452,2]
[389742117,1759821053691,-500.0,0.00019452,2]
[389742119,1759821053700,-824.65,0.00019452,2]
[389742121,1759821053710,-500.0,0.00019452,2]
[389742123,1759821053719,-403.4814883,0.00019452,2]
[389742124,1759821053728,-500.0,0.00019452,2]
[389742126,1759821053738,-462.78102838,0.00019452,2]
[389742129,1759821053747,-553.72,0.00019452,2]
[389742131,1759821053758,-500.0,0.00019452,2]
[389742132,1759821053767,-500.0,0.00019452,2]
[389742135,1759821053777,-500.0,0.00019452,2]
[389742137,1759821053787,-500.0,0.00019452,2]
[389742139,1759821053796,-500.0,0.00019452,2]
[389742141,1759821053806,-500.0,0.00019452,2]
[389742143,1759821053815,-500.0,0.00019452,2]
[389742145,1759821053826,-500.0,0.00019452,2]
[389742146,1759821053835,-500.0,0.00019452,2]
[389742148,1759821053844,-461.69511893,0.00019452,2]
[389742150,1759821053854,-500.0,0.00019452,2]
[389742152,1759821053866,-500.0,0.00019452,2]
[389742155,1759821053876,-500.0,0.00019452,2]
[389742156,1759821053885,-500.0,0.00019452,2]
[389742159,1759821053895,-529.78,0.00019452,2]
[389742161,1759821053904,-1304.91,0.00019452,2]
[389742162,1759821053913,-673.54,0.00019452,2]
[389742164,1759821053923,-550.62,0.00019452,2]
[389742166,1759821053932,-500.0,0.00019452,2]
[389742168,1759821053941,-500.0,0.00019452,2]
[389742170,1759821053950,-706.79,0.00019452,2]
[389742173,1759821053960,-629.49,0.00019452,2]
[389742175,1759821053971,-500.0,0.00019452,2]
[389742177,1759821053981,-535.93,0.00019452,2]
[389742179,1759821053991,-500.0,0.00019452,2]
[389742180,1759821054000,-500.0,0.00019452,2]
[389742183,1759821054010,-500.0,0.00019452,2]
[389742185,1759821054020,-500.0,0.00019452,2]
[389742187,1759821054030,-500.0,0.00019452,2]
[389742189,1759821054039,-500.0,0.00019452,2]
[389742191,1759821054048,-7398.4,0.00019452,2]
[389742193,1759821054058,-500.0,0.00019452,2]
[389742195,1759821054068,-500.0,0.00019452,2]
[389742197,1759821054077,-668.15,0.00019452,2]
[389742199,1759821054086,-500.0,0.00019452,2]
[389742201,1759821054097,-500.0,0.00019452,2]
[389742203,1759821054106,-500.0,0.00019452,2]
[389742205,1759821054117,-500.0,0.00019452,2]
[389742207,1759821054127,-500.0,0.00019452,2]
[389742208,1759821054136,-1010.91,0.00019452,2]
[389742210,1759821054145,-500.0,0.00019452,2]
[389742213,1759821054154,-500.0,0.00019452,2]
[389742215,1759821054164,-500.0,0.00019452,2]
[389742217,1759821054175,-500.0,0.00019452,2]
[389742218,1759821054184,-895.45,0.00019452,2]
[389742221,1759821054194,-500.0,0.00019452,2]
[389742223,1759821054204,-1504.47,0.00019452,2]
[389742225,1759821054214,-3643.6,0.00019452,2]
[389742227,1759821054224,-500.0,0.00019452,2]
[389742229,1759821054233,-500.0,0.00019452,2]
[389742230,1759821054242,-500.0,0.00019452,2]
[389742232,1759821054252,-16300.19,0.00019452,2]
[389742234,1759821054263,-690.30137447,0.00019452,2]
[389742236,1759821054272,-2306.73,0.00019452,2]
[389742239,1759821054282,-523.05075728,0.00019452,2]
[389742240,1759821054292,-500.0,0.00019452,2]
[389742242,1759821054302,-500.0,0.00019452,2]
[389742244,1759821054312,-1533.81657436,0.00019452,2]
[389742247,1759821054330,-3162.57342564,0.00019452,2]
[389742249,1759821054339,-500.0,0.00019452,2]
[389742251,1759821054349,-500.0,0.00019452,2]
[389742253,1759821054359,-500.0,0.00019452,2]
[389742255,1759821054368,-500.0,0.00019452,2]
[389742258,1759821054379,-500.0,0.00019452,2]
[389742259,1759821054388,-500.0,0.00019452,2]
[389742261,1759821054398,-500.72853145,0.00019452,2]
[389742263,1759821054408,-728.55,0.00019452,2]
[389742265,1759821054417,-774.06,0.00019452,2]
[389742267,1759821054427,-500.0,0.00019452,2]
[389742269,1759821054436,-500.0,0.00019452,2]
[389742271,1759821054445,-500.0,0.00019452,2]
[389742273,1759821054455,-55.76951483,0.00019452,2]
[389742276,1759821054466,-284.84676354,0.00019452,2]
[389742292,1759821054802,-151.0,0.00019178,2]
[389742294,1759821054811,-151.0,0.00019178,2]
[389742296,1759821054820,-151.0,0.00019178,2]
[389742298,1759821054830,-151.0,0.00019178,2]
[389742300,1759821054839,-151.0,0.00019178,2]
[389742302,1759821054849,-151.0,0.00019178,2]
[389742305,1759821054859,-345.37112118,0.00019178,2]
[389742313,1759821054939,-154.62887882,0.00019178,2]
[389742315,1759821054948,-151.0,0.00019178,2]
[389742318,1759821054958,-151.0,0.00019178,2]
[389742320,1759821054968,-151.0,0.00019178,2]
[389742322,1759821054977,-151.0,0.00019178,2]
[389742324,1759821054988,-159.38372163,0.00019452,2]
[389742326,1759821054996,-500.0,0.00019452,2]
[389742327,1759821055005,-500.0,0.00019452,2]
[389742330,1759821055015,-500.0,0.00019452,2]
[389742331,1759821055024,-500.0,0.00019452,2]
[389742333,1759821055034,-500.0,0.00019452,2]
[389742336,1759821055043,-500.0,0.00019452,2]
[389742337,1759821055054,-37.98739955,0.00019452,2]
[389742417,1759821055811,552.280912,0.00013699,2]
[389742804,1759821125493,1659.4,0.0001579,2]
[389742856,1759821365095,1000.0,0.00028767,120]
[389742857,1759821389270,1063.0,0.00028767,120]
[389743003,1759822232565,-1236.8,0.00016928,14]
[389743004,1759822232646,-585.85670608,0.00016928,14]
[389743059,1759822238471,-3177.34329392,0.00016928,14]
[389743061,1759822238481,-150.0,0.00017447,2]
[389743063,1759822238490,-150.0,0.00017447,2]
[389743065,1759822238500,-323.67351122,0.000178,2]
[389743074,1759822238580,-594.82644238,0.000178,2]
[389743077,1759822238592,-724.63680619,0.000178,2]
[389743079,1759822238603,-229.01946161,0.000178,2]
[389743081,1759822238612,-164.02335436,0.00018247,2]
[389743083,1759822238624,-0.97664564,0.00018247,2]
[389743090,1759822238674,-300.0,0.00018499,2]
[389743092,1759822238684,-2800.95054916,0.000185,2]
[389743094,1759822238693,-271.06959532,0.00018578,2]
[389743096,1759822238703,-197.65415558,0.00018578,2]
[389743097,1759822238712,-1591.6432883,0.00018665,2]
[389743100,1759822238722,-428.18850865,0.00018668,2]
[389743101,1759822238731,-199.7,0.00018668,3]
[389743104,1759822238741,-599.12,0.00018668,3]
[389743106,1759822238750,-500.0,0.00018677,2]
[389743108,1759822238760,-500.0,0.00018677,2]
[389743109,1759822238769,-500.0,0.00018677,2]
[389743111,1759822238779,-460.0,0.00018677,2]
[389743113,1759822238789,-500.0,0.00018677,2]
[389743115,1759822238798,-500.0,0.00018677,2]
[389743118,1759822238808,-500.0,0.00018677,2]
[389743119,1759822238817,-225.59775204,0.00018677,2]
[389743121,1759822238826,-469.45231373,0.00018677,2]
[389743124,1759822238836,-500.0,0.00018677,2]
[389743126,1759822238845,-500.0,0.00018677,2]
[389743128,1759822238855,-500.0,0.00018677,2]
[389743129,1759822238864,-589.48072176,0.00018677,2]
[389743131,1759822238873,-500.0,0.00018677,2]
[389743133,1759822238882,-500.0,0.00018677,2]
[389743135,1759822238891,-500.0,0.00018677,2]
[389743138,1759822238901,-500.0,0.00018677,2]
[389743140,1759822238910,-20.6920907,0.00018677,2]
[389743320,1759822240604,-479.3079093,0.00018677,2]
[389743322,1759822240613,-500.0,0.00018677,2]
[389743324,1759822240623,-500.0,0.00018677,2]
[389743326,1759822240632,-459.03180318,0.00018677,2]
[389743328,1759822240641,-500.0,0.00018677,2]
[389743330,1759822240651,-500.0,0.00018677,2]
[389743332,1759822240660,-405.73691916,0.00018677,2]
[389743334,1759822240669,-500.0,0.00018677,2]
[389743336,1759822240679,-500.0,0.00018677,2]
[389743338,1759822240688,-500.0,0.00018677,2]
[389743340,1759822240697,-500.0,0.00018677,2]
[389743342,1759822240707,-500.0,0.00018677,2]
[389743344,1759822240716,-500.0,0.00018677,2]
[389743346,1759822240726,-261.49777972,0.00018677,2]
[389743348,1759822240735,-500.0,0.00018677,2]
[389743350,1759822240744,-81879.85254513,0.00018678,2]
[389743355,1759822240779,-20601.69365,0.00018678,2]
[389743618,1759822245177,-37.88519502,0.00017323,14]
[389743665,1759822246432,-3985.86902202,0.00017323,14]
[389743667,1759822246443,-1018.123787,0.00017498,2]
[389743668,1759822246453,-2739.17956533,0.00018678,2]
[389743670,1759822246485,-3952.6,0.00018678,2]
[389744929,1759822920693,5583.4250738,0.0002876,120]
[389744933,1759823275093,160.0,0.000287,120]
[389745493,1759823438766,-261.63,0.00018003,2]
[389745494,1759823438776,-5509.0,0.00018004,2]
[389745495,1759823438786,-150.0,0.00018097,2]
[389745496,1759823438795,-300.0,0.0001819,2]
[389745497,1759823438804,-3184.18045982,0.00018191,2]
[389745500,1759823439049,-272.81267215,0.00018191,2]
[389745563,1759823440750,-2431.00686803,0.00018191,2]
[389745565,1759823440759,-271.06959532,0.00018521,2]
[389745567,1759823440768,-172.94738615,0.00018521,2]
[389745569,1759823440777,-150.0,0.00018524,2]
[389745570,1759823440787,-399.4,0.00018568,3]
[389745572,1759823440797,-217.67020035,0.00018577,2]
[389745574,1759823440806,-385.49470153,0.00018577,2]
[389745576,1759823440815,-211.74854657,0.00018577,2]
[389745578,1759823440825,-362.38864219,0.00018577,2]
[389745580,1759823440834,-358.39975023,0.00018577,2]
[389745581,1759823440843,-3926.22961892,0.00018578,2]
[389745671,1759823443921,-1933.53716778,0.00018578,2]
[389745673,1759823443932,-464.996769,0.00018578,2]
[389745675,1759823443945,-302.0,0.00018578,2]
[389745741,1759823446689,-250.94284638,0.00018578,2]
[389745743,1759823446700,-441.6080201,0.00018578,2]
[389746915,1759824091377,200.0,0.00026997,120]
[389746917,1759824151756,200.0,0.00028665,120]
[389746918,1759824280865,263990.19404286,0.0002022,19]
[389746920,1759824332239,200.0,0.00028564,120]
[389746929,1759824391226,200.0,0.00027761,120]
[389746931,1759824626750,-3000.0,0.00030576,120]
[389746932,1759824626777,-1764.90387463,0.00030576,120]
[389746933,1759824626801,-282.04705323,0.00030576,120]
[389746934,1759824626824,-868.61393182,0.00030576,120]
[389746935,1759824626849,-2567.49905326,0.00030576,120]
[389746936,1759824626873,-1428.1668169,0.00030576,120]
[389746937,1759824626897,-987.99658731,0.00030576,120]
[389746938,1759824626924,-216.94598914,0.00030576,60]
[389746939,1759824626947,-1457.66792375,0.00030576,120]
[389746940,1759824626973,-938.17542099,0.00030576,120]
[389746941,1759824626996,-999.999991,0.00030576,120]
[389746942,1759824627020,-911.693474,0.00030576,60]
[389746943,1759824627044,-3236.74369954,0.00030576,120]
[389746944,1759824627068,-865.34227404,0.00030576,120]
[389746945,1759824627092,-895.86016496,0.00030576,120]
[389746946,1759824627116,-707.5176262,0.00030576,120]
[389746947,1759824627140,-240.82074905,0.00030576,120]
[389746948,1759824627165,-334.52572196,0.00030576,90]
[389746949,1759824627189,-248.03264677,0.00030576,120]
[389746950,1759824627216,-2912.48744564,0.00030576,120]
[389746951,1759824627240,-2000.0,0.00030576,120]
[389746952,1759824627263,-346.718072,0.00030576,120]
[389746953,1759824627287,-1127.71128594,0.00030576,120]
[389746954,1759824627311,-2665.0180934,0.00030576,120]
[389746955,1759824627334,-567.86059509,0.00030576,120]
[389746956,1759824627357,-360.47911889,0.00030576,120]
[389746957,1759824627386,-1032.03028069,0.00030576,120]
[389746958,1759824627411,-1468.42320115,0.00030576,120]
[389746959,1759824627435,-904.02557932,0.00030576,120]
[389746960,1759824627461,-1539.17120972,0.00030576,120]
[389746961,1759824627485,-1888.17492509,0.00030576,60]
[389746962,1759824627508,-1601.55695943,0.00030576,120]
[389746963,1759824627531,-221.12720417,0.00030576,120]
[389746964,1759824627558,-436.8709866,0.00030576,120]
[389746965,1759824627582,-3113.15476916,0.00030576,120]
[389746966,1759824627608,-324.63377389,0.00030576,120]
[389746967,1759824627632,-1220.96995935,0.00030576,60]
[389746968,1759824627656,-457.8543399,0.00030576,60]
[389746969,1759824627679,-166.48763904,0.00030576,120]
[389746970,1759824627702,-503.76512,0.00030576,120]
[389746971,1759824627728,-545.16026112,0.00030576,120]
[389746972,1759824627751,-2032.39445254,0.00030576,120]
[389746973,1759824627775,-1034.35063456,0.00030576,120]
[389746974,1759824627799,-1203.36929562,0.00030576,120]
[389746975,1759824627823,-163.86538194,0.00030576,120]
[389746976,1759824627847,-224.6888772,0.00030576,120]
[389746977,1759824627874,-1912.0,0.00030576,120]
[389746978,1759824627897,-3247.95862439,0.00030576,120]
[389746979,1759824627922,-246.46129241,0.00030576,120]
[389746980,1759824627946,-1792.94028368,0.00030576,120]
[389746981,1759824627970,-352.50856092,0.00030576,120]
[389746982,1759824627994,-429.72817524,0.00030576,120]
[389746983,1759824628018,-1017.10986299,0.00030576,120]
[389746984,1759824628042,-3245.67457961,0.00030576,120]
[389746985,1759824628068,-1009.4660158,0.00030576,60]
[389746986,1759824628092,-190.30574767,0.00030576,120]
[389746987,1759824628118,-458.0,0.00030576,120]
[389746988,1759824628142,-295.53664401,0.00030576,120]
[389746989,1759824628166,-1013.23249211,0.00030576,60]
[389746990,1759824628189,-37865.1222183,0.00030576,120]
[389746991,1759824628212,-280.4,0.00030576,120]
[389746992,1759824628451,-863.54,0.00030576,120]
[389746993,1759824628478,-3101.93826904,0.00030576,120]
[389746994,1759824628503,-2714.36352934,0.00030576,120]
[389746995,1759824628529,-1042.5830187,0.00030576,120]
[389746996,1759824628552,-1735.0224715,0.00030576,120]
[389746997,1759824628575,-3075.0,0.00030576,120]
[389746998,1759824628599,-11283.97582204,0.00030576,120]
[389746999,1759824628623,-3041.66840102,0.00030576,120]
[389747000,1759824628647,-3375.192803,0.00030576,120]
[389747001,1759824628671,-1000.0,0.00030576,120]
[389747002,1759824628694,-1127.0,0.00030576,120]
[389747003,1759824628718,-500.993,0.00030576,120]
[389747004,1759824628742,-1122.13416198,0.00030576,120]
[389747005,1759824628766,-2555.496422,0.00030576,120]
[389747006,1759824628796,-3020.0,0.00030576,60]
[389747007,1759824628819,-578.26,0.00030576,90]
[389747008,1759824628842,-1250.1760643,0.00030576,120]
[389747009,1759824628864,-176.86707046,0.00030576,120]
[389747010,1759824628888,-1687.40190075,0.00030576,60]
[389747011,1759824628912,-42977.96737665,0.00030576,120]
[389747012,1759824628936,-7878.65739106,0.00030576,60]
[389747013,1759824628961,-1401.7854874,0.00030576,120]
[389747014,1759824628984,-1622.0,0.00030576,120]
[389747015,1759824629008,-1990.25893405,0.00030576,120]
[389747016,1759824629032,-43465.13965129,0.00030576,120]
[389747017,1759824629056,-156.19302376,0.00030576,120]
[389747018,1759824629079,-6310.76213809,0.00030576,60]
[389747019,1759824629103,-60000.0,0.00030576,120]
[389747020,1759824629126,-716.40492744,0.00030576,120]
[389747021,1759824629150,-4473.83,0.00030576,120]
[389747022,1759824629177,-2344.23158889,0.00030576,60]
[389747023,1759824629203,-10644.0,0.00030576,90]
[389747024,1759824629231,-557.92211528,0.00030576,120]
[389747025,1759824629256,-158.74009239,0.00030576,120]
[389747026,1759824629281,-158.74009235,0.00030576,120]
[389747027,1759824629307,-158.74009235,0.00030576,120]
[389747028,1759824629333,-158.74009235,0.00030576,120]
[389747029,1759824629359,-158.74009235,0.00030576,120]
[389747030,1759824629384,-158.74009235,0.00030576,120]
[389747031,1759824629408,-158.74009235,0.00030576,120]
[389747032,1759824629433,-158.74009235,0.00030576,120]
[389747033,1759824629457,-158.74009235,0.00030576,120]
[389747034,1759824629482,-158.74009235,0.00030576,120]
[389747035,1759824629507,-1400419.00671103,0.00030576,120]
[389747520,1759824638072,-151.0,0.000181,2]
[389747521,1759824638082,-150.0,0.00018147,2]
[389747522,1759824638092,-226.01044659,0.00018356,2]
[389747523,1759824638103,-773.98955341,0.00018356,2]
[389747524,1759824638114,-151.32896289,0.00018421,2]
[389747525,1759824638123,-2139.7284421,0.00018421,2]
[389747526,1759824638162,-389.52857595,0.00018421,2]
[389747527,1759824638172,-1000.0,0.00018467,2]
[389747528,1759824638182,-1008.3365489,0.00018467,2]
[389747529,1759824638192,-1200.0,0.00018474,2]
[389747530,1759824638201,-300.0,0.00018475,2]
[389747531,1759824638211,-300.0,0.00018475,2]
[389747532,1759824638222,-300.0,0.00018475,2]
[389747533,1759824638231,-300.0,0.00018475,2]
[389747534,1759824638242,-300.0,0.00018475,2]
[389747535,1759824638251,-1000.0,0.00018476,5]
[389747536,1759824638261,-4189.9059293,0.00018478,2]
[389747617,1759824639899,-2291.74999999,0.00018478,2]
[389747681,1759824642988,-1711.50000225,0.00018478,2]
[389747737,1759824646050,-361806.84406846,0.00018478,2]
[389747739,1759824646059,-392.71241034,0.00018521,2]
[389747741,1759824646069,-392.7124103,0.00018566,2]
[389747743,1759824646078,-1518.9252738,0.00018577,2]
[389747745,1759824646088,-392.7124103,0.00018611,2]
[389747747,1759824646098,-5888.0,0.00018621,2]
[389747749,1759824646107,-1000.0,0.0001863,2]
[389747751,1759824646117,-392.7124103,0.00018655,2]
[389747753,1759824646126,-392.7124103,0.000187,2]
[389747755,1759824646135,-5888.0,0.00018744,2]
[389747757,1759824646145,-5888.0,0.00018775,2]
[389747759,1759824646154,-13412.06112537,0.000188,2]
[389747761,1759824646164,-263.90510784,0.000189,2]
[389747763,1759824646173,-1000.0,0.00018904,2]
[389747765,1759824646183,-165.0,0.00018947,2]
[389747767,1759824646192,-160.0,0.00018948,3]
[389747769,1759824646202,-162.537,0.00018999,2]
[389747771,1759824646212,-2529.25701805,0.00019024,2]
[389747773,1759824646222,-150.0,0.00019047,2]
[389747775,1759824646236,-2158.0,0.00019047,2]
[389747776,1759824646246,-630.0,0.00019047,2]
[389747778,1759824646255,-411.0,0.00019047,2]
[389747780,1759824646266,-5888.0,0.00019061,2]
[389747782,1759824646277,-151.0,0.000191,2]
[389747784,1759824646287,-300.0,0.00019152,2]
[389747786,1759824646299,-300.0,0.00019152,2]
[389747788,1759824646309,-300.0,0.00019152,2]
[389747790,1759824646318,-300.0,0.00019152,2]
[389747792,1759824646329,-169.2365077,0.00019152,2]
[389747795,1759824646351,-130.7634923,0.00019152,2]
[389747797,1759824646361,-300.0,0.00019152,2]
[389747799,1759824646371,-300.0,0.00019152,2]
[389747801,1759824646381,-300.0,0.00019152,2]
[389747803,1759824646392,-300.0,0.00019152,2]
[389747805,1759824646401,-300.0,0.00019152,2]
[389747807,1759824646410,-300.0,0.00019152,2]
[389747809,1759824646420,-300.0,0.00019152,2]
[389747811,1759824646429,-300.0,0.00019152,2]
[389747813,1759824646439,-300.0,0.00019152,2]
[389747815,1759824646448,-300.0,0.00019152,2]
[389747817,1759824646457,-168.0,0.0001916,2]
[389747818,1759824646466,-5888.0,0.00019168,2]
[389747820,1759824646477,-1733.6066834,0.0001917,2]
[389747822,1759824646487,-500.0,0.00019173,2]
[389747824,1759824646497,-407.19784688,0.00019173,2]
[389747826,1759824646506,-500.0,0.00019173,2]
[389747828,1759824646515,-500.0,0.00019173,2]
[389747830,1759824646525,-500.0,0.00019173,2]
[389747832,1759824646535,-500.0,0.00019173,2]
[389747834,1759824646545,-500.0,0.00019173,2]
[389747836,1759824646554,-500.0,0.00019173,2]
[389747838,1759824646563,-500.0,0.00019178,2]
[389747840,1759824646572,-500.0,0.00019178,2]
[389747842,1759824646581,-500.0,0.00019178,2]
[389747844,1759824646591,-500.0,0.00019178,2]
[389747846,1759824646601,-500.0,0.00019178,2]
[389747848,1759824646611,-500.0,0.00019178,2]
[389747850,1759824646621,-500.0,0.00019178,2]
[389747852,1759824646631,-635.57566344,0.00019178,2]
[389747853,1759824646640,-500.0,0.00019178,2]
[389747855,1759824646649,-500.0,0.00019178,2]
[389747857,1759824646658,-500.0,0.00019178,2]
[389747859,1759824646668,-500.0,0.00019178,2]
[389747861,1759824646677,-300.38396805,0.00019178,2]
[389747863,1759824646686,-500.0,0.00019178,2]
[389747865,1759824646696,-442.44711325,0.00019178,2]
[389747867,1759824646706,-500.0,0.00019178,2]
[389747869,1759824646715,-500.0,0.00019178,2]
[389747871,1759824646725,-506.28,0.00019178,2]
[389747873,1759824646734,-500.0,0.00019178,2]
[389747875,1759824646744,-500.0,0.00019178,2]
[389747877,1759824646753,-480.97685074,0.00019178,2]
[389747879,1759824646763,-449.30933434,0.00019178,2]
[389747881,1759824646773,-546.78381443,0.00019178,2]
[389747882,1759824646782,-192.15349677,0.00019178,2]
[389747884,1759824646792,-461.5605402,0.00019178,2]
[389747886,1759824646801,-324.54612605,0.00019178,2]
[389747888,1759824646811,-487.65345545,0.00019178,2]
[389747890,1759824646820,-500.0,0.00019178,2]
[389747892,1759824646830,-500.0,0.00019178,2]
[389747894,1759824646840,-500.0,0.00019178,2]
[389747896,1759824646849,-500.0,0.00019178,2]
[389747898,1759824646859,-500.0,0.00019178,2]
[389747900,1759824646868,-500.0,0.00019178,2]
[389747902,1759824646878,-500.0,0.00019178,2]
[389747904,1759824646887,-480.0,0.00019178,2]
[389747906,1759824646896,-500.0,0.00019178,2]
[389747908,1759824646905,-498.69054631,0.00019178,2]
[389747910,1759824646914,-500.0,0.00019178,2]
[389747911,1759824646923,-500.0,0.00019178,2]
[389747913,1759824646932,-500.0,0.00019178,2]
[389747915,1759824646942,-500.0,0.00019178,2]
[389747917,1759824646951,-500.0,0.00019178,2]
[389747919,1759824646961,-500.0,0.00019178,2]
[389747921,1759824646970,-870.99,0.00019178,2]
[389747923,1759824646981,-500.0,0.00019178,2]
[389747925,1759824646991,-500.0,0.00019178,2]
[389747927,1759824647001,-500.0,0.00019178,2]
[389747929,1759824647010,-500.0,0.00019178,2]
[389747931,1759824647019,-500.0,0.00019178,2]
[389747933,1759824647029,-500.0,0.00019178,2]
[389747935,1759824647039,-500.0,0.00019178,2]
[389747937,1759824647048,-260.5796626,0.00019178,2]
[389747939,1759824647058,-362.45061991,0.00019178,2]
[389747941,1759824647067,-500.0,0.00019178,2]
[389747943,1759824647076,-500.0,0.00019178,2]
[389747945,1759824647086,-500.0,0.00019178,2]
[389747947,1759824647095,-157.27849142,0.00019178,2]
[389747948,1759824647104,-500.0,0.00019178,2]
[389747950,1759824647114,-500.0,0.00019178,2]
[389747952,1759824647124,-500.0,0.00019178,2]
[389747954,1759824647132,-500.0,0.00019178,2]
[389747956,1759824647142,-500.0,0.00019178,2]
[389747958,1759824647152,-500.0,0.00019178,2]
[389747960,1759824647161,-556.43831566,0.00019178,2]
[389747962,1759824647171,-500.0,0.00019178,2]
[389747964,1759824647180,-500.0,0.00019178,2]
[389747966,1759824647190,-1081.25,0.00019178,2]
[389747968,1759824647199,-500.0,0.00019178,2]
[389747970,1759824647208,-500.0,0.00019178,2]
[389747972,1759824647218,-500.0,0.00019178,2]
[389747974,1759824647227,-500.0,0.00019178,2]
[389747976,1759824647237,-500.0,0.00019178,2]
[389747978,1759824647246,-500.0,0.00019178,2]
[389747980,1759824647255,-500.0,0.00019178,2]
[389747982,1759824647264,-510.13,0.00019178,2]
[389747983,1759824647274,-823.18,0.00019178,2]
[389747985,1759824647283,-500.0,0.00019178,2]
[389747987,1759824647293,-500.0,0.00019178,2]
[389747989,1759824647303,-500.0,0.00019178,2]
[389747991,1759824647312,-500.0,0.00019178,2]
[389747993,1759824647322,-300.76094796,0.00019178,2]
[389747995,1759824647331,-500.0,0.00019178,2]
[389747997,1759824647340,-524.25,0.00019178,2]
[389747999,1759824647350,-500.0,0.00019178,2]
[389748001,1759824647359,-500.0,0.00019178,2]
[389748003,1759824647369,-699.05,0.00019178,2]
[389748005,1759824647378,-539.06,0.00019178,2]
[389748007,1759824647387,-396.25047285,0.00019178,2]
[389748008,1759824647396,-500.0,0.00019178,2]
[389748010,1759824647406,-500.0,0.00019178,2]
[389748012,1759824647416,-500.0,0.00019178,2]
[389748014,1759824647426,-1000.0,0.00019178,2]
[389748016,1759824647435,-500.0,0.00019178,2]
[389748018,1759824647445,-500.0,0.00019178,2]
[389748020,1759824647454,-500.0,0.00019178,2]
[389748022,1759824647463,-500.0,0.00019178,2]
[389748024,1759824647472,-500.0,0.00019178,2]
[389748025,1759824647482,-500.0,0.00019178,2]
[389748027,1759824647492,-500.0,0.00019178,2]
[389748029,1759824647501,-500.0,0.00019178,2]
[389748031,1759824647512,-500.0,0.00019178,2]
[389748033,1759824647521,-500.0,0.00019178,2]
[389748035,1759824647530,-500.0,0.00019178,2]
[389748037,1759824647539,-612.48864436,0.00019178,2]
[389748039,1759824647549,-500.0,0.00019178,2]
[389748041,1759824647562,-500.0,0.00019178,2]
[389748043,1759824647573,-500.0,0.00019178,2]